lending/lending_fUSD_20241124
["ID","MTS","AMOUNT","RATE_DAILY","PERIOD"]
[343182087,1732421439844,-309.83879104,0.00043697,2]
[343182088,1732421439853,-500.0,0.00043697,2]
[343182089,1732421439863,-264.49149985,0.00043697,2]
[343182090,1732421439873,-500.0,0.00043697,2]
[343182091,1732421439883,-500.0,0.00043697,2]
[343182092,1732421439894,-500.0,0.00043697,2]
[343182093,1732421439907,-500.0,0.00043697,2]
[343182094,1732421439916,-500.0,0.00043697,2]
[343182095,1732421439926,-500.0,0.00043697,2]
[343182096,1732421439938,-500.0,0.00043697,2]
[343182097,1732421439948,-500.0,0.00043697,2]
[343182099,1732421439957,-500.0,0.00043697,2]
[343182100,1732421439968,-500.0,0.00043697,2]
[343182102,1732421439977,-515.06855851,0.00043697,2]
[343182103,1732421439988,-500.0,0.00043697,2]
[343182104,1732421439998,-500.0,0.00043697,2]
[343182105,1732421440007,-151.0,0.00043697,14]
[343182106,1732421440016,-506.95608068,0.00043697,2]
[343182107,1732421440026,-151.0,0.00043697,14]
[343182108,1732421440035,-381.70763391,0.00043697,2]
[343182109,1732421440046,-151.0,0.00043697,14]
[343182110,1732421440055,-500.0,0.00043697,2]
[343182111,1732421440065,-500.0,0.00043697,2]
[343182112,1732421440075,-554.12025391,0.00043697,2]
[343182113,1732421440085,-1783.96,0.00043697,2]
[343182114,1732421440095,-504.36926844,0.00043697,2]
[343182115,1732421440105,-500.0,0.00043697,2]
[343182116,1732421440115,-500.0,0.00043697,2]
[343182117,1732421440125,-500.0,0.00043697,2]
[343182118,1732421440134,-500.0,0.00043697,2]
[343182119,1732421440145,-517.49898586,0.00043697,2]
[343182120,1732421440159,-500.0,0.00043697,2]
[343182121,1732421440168,-500.0,0.00043697,2]
[343182122,1732421440178,-503.8717496,0.00043697,2]
[343182123,1732421440188,-500.0,0.00043697,2]
[343182124,1732421440198,-151.0,0.00043697,14]
[343182125,1732421440208,-151.0,0.00043697,14]
[343182126,1732421440218,-151.0,0.00043697,14]
[343182127,1732421440228,-500.0,0.00043697,2]
[343182128,1732421440238,-151.0,0.00043697,14]
[343182129,1732421440248,-597.2176356,0.00043697,2]
[343182130,1732421440258,-151.0,0.00043697,14]
[343182131,1732421440267,-500.0,0.00043697,2]
[343182132,1732421440277,-151.0,0.00043697,14]
[343182133,1732421440287,-151.0,0.00043697,14]
[343182134,1732421440296,-151.0,0.00043697,14]
[343182135,1732421440306,-500.0,0.00043697,2]
[343182136,1732421440316,-500.0,0.00043697,2]
[343182137,1732421440325,-151.0,0.00043697,14]
[343182138,1732421440334,-151.0,0.00043697,14]
[343182139,1732421440344,-500.0,0.00043697,2]
[343182140,1732421440354,-173.854483,0.00043697,14]
[343182141,1732421440364,-153.391587,0.00043697,14]
[343182142,1732421440375,-283.230366,0.00043697,14]
[343182143,1732421440385,-283.230366,0.00043697,14]
[343182144,1732421440396,-7163.9,0.00043697,2]
[343182145,1732421440410,-283.230366,0.00043697,14]
[343182146,1732421440419,-283.230366,0.00043697,14]
[343182147,1732421440429,-283.230366,0.00043697,14]
[343182148,1732421440439,-283.230366,0.00043697,14]
[343182149,1732421440449,-500.0,0.00043697,2]
[343182150,1732421440458,-283.230366,0.00043697,14]
[343182151,1732421440468,-283.230366,0.00043697,14]
[343182152,1732421440478,-283.230366,0.00043697,14]
[343182153,1732421440488,-283.230366,0.00043697,14]
[343182154,1732421440498,-500.0,0.00043697,2]
[343182155,1732421440507,-283.230366,0.00043697,14]
[343182156,1732421440516,-283.230366,0.00043697,14]
[343182157,1732421440526,-180.04242661,0.00043697,2]
[343182158,1732421440535,-500.0,0.00043697,2]
[343182159,1732421440546,-283.230366,0.00043697,14]
[343182160,1732421440555,-283.230366,0.00043697,14]
[343182161,1732421440564,-283.230366,0.00043697,14]
[343182162,1732421440574,-283.230366,0.00043697,14]
[343182163,1732421440583,-283.230366,0.00043697,14]
[343182164,1732421440592,-506.80656024,0.00043697,2]
[343182165,1732421440601,-283.230366,0.00043697,14]
[343182166,1732421440611,-520.72612085,0.00043697,2]
[343182167,1732421440620,-283.230366,0.00043697,14]
[343182168,1732421440629,-2220.12,0.00043697,2]
[343182169,1732421440639,-283.230359,0.00043697,14]
[343182170,1732421440648,-500.0,0.00043697,2]
[343182171,1732421440659,-741.0,0.00043697,2]
[343182172,1732421440668,-741.0,0.00043697,2]
[343182173,1732421440678,-503.87305805,0.00043697,2]
[343182174,1732421440689,-621.97377298,0.00043697,2]
[343182175,1732421440698,-500.0,0.00043697,2]
[343182176,1732421440707,-500.0,0.00043697,2]
[343182177,1732421440716,-500.0,0.00043697,2]
[343182178,1732421440726,-500.0,0.00043697,2]
[343182179,1732421440736,-500.0,0.00043697,2]
[343182180,1732421440745,-500.0,0.00043697,2]
[343182181,1732421440755,-505.7167973,0.00043697,2]
[343182182,1732421440764,-500.0,0.00043697,2]
[343182183,1732421440773,-500.0,0.00043697,2]
[343182184,1732421440783,-500.0,0.00043697,2]
[343182185,1732421440792,-500.0,0.00043697,2]
[343182186,1732421440802,-500.0,0.00043697,2]
[343182187,1732421440811,-500.0,0.00043697,2]
[343182188,1732421440820,-500.0,0.00043697,2]
[343182189,1732421440830,-500.0,0.00043697,2]
[343182190,1732421440839,-500.0,0.00043697,2]
[343182191,1732421440849,-500.0,0.00043697,2]
[343182192,1732421440858,-500.0,0.00043697,2]
[343182193,1732421440867,-500.0,0.00043697,2]
[343182194,1732421440877,-500.0,0.00043697,2]
[343182195,1732421440887,-500.0,0.00043697,2]
[343182196,1732421440898,-500.0,0.00043697,2]
[343182197,1732421440909,-151.0,0.00043697,14]
[343182198,1732421440919,-500.0,0.00043697,2]
[343182199,1732421440929,-151.0,0.00043697,14]
[343182200,1732421440938,-151.0,0.00043697,14]
[343182201,1732421440948,-500.0,0.00043697,2]
[343182202,1732421440958,-500.0,0.00043697,2]
[343182203,1732421440968,-151.0,0.00043697,14]
[343182204,1732421440980,-198.686372,0.00043697,14]
[343182205,1732421440990,-594.75192972,0.00043697,2]
[343182206,1732421440999,-509.10203545,0.00043697,2]
[343182207,1732421441009,-156.99016626,0.00043697,2]
[343182208,1732421441018,-500.0,0.00043697,2]
[343182209,1732421441028,-500.0,0.00043697,2]
[343182210,1732421441037,-503.41663055,0.00043697,2]
[343182211,1732421441047,-500.0,0.00043697,2]
[343182212,1732421441056,-500.0,0.00043697,2]
[343182213,1732421441066,-500.0,0.00043697,2]
[343182214,1732421441076,-23848.0752,0.00043698,2]
[343182215,1732421441085,-91101.1605,0.00043698,2]
[343182216,1732421441094,-191.22543557,0.00043698,30]
[343182217,1732421441103,-152.690758,0.00043698,14]
[343182218,1732421441112,-153.715289,0.00043698,14]
[343182219,1732421441121,-151.0,0.00043698,14]
[343182220,1732421441131,-151.0,0.00043698,14]
[343182221,1732421441140,-151.0,0.00043698,14]
[343182222,1732421441149,-151.0,0.00043698,14]
[343182223,1732421441160,-151.0,0.00043698,14]
[343182224,1732421441169,-151.0,0.00043698,14]
[343182225,1732421441178,-151.0,0.00043698,14]
[343182226,1732421441187,-151.0,0.00043698,14]
[343182227,1732421441196,-151.0,0.00043698,14]
[343182228,1732421441206,-151.0,0.00043698,14]
[343182229,1732421441215,-151.0,0.00043698,14]
[343182230,1732421441224,-173.71248368,0.00043698,18]
[343182231,1732421441234,-251.853786,0.00043698,14]
[343182232,1732421441243,-197.963715,0.00043698,14]
[343182233,1732421441252,-197.963715,0.00043698,14]
[343182234,1732421441262,-197.963715,0.00043698,14]
[343182235,1732421441271,-197.963715,0.00043698,14]
[343182236,1732421441280,-151.0,0.00043698,3]
[343182237,1732421441290,-151.0,0.00043698,3]
[343182238,1732421441299,-151.0,0.00043698,14]
[343182239,1732421441308,-151.0,0.00043698,14]
[343182240,1732421441317,-151.0,0.00043698,14]
[343182241,1732421441326,-151.0,0.00043698,14]
[343182242,1732421441336,-151.0,0.00043698,14]
[343182243,1732421441345,-151.0,0.00043698,14]
[343182244,1732421441355,-151.0,0.00043698,14]
[343182245,1732421441364,-151.0,0.00043698,14]
[343182246,1732421441374,-151.0,0.00043698,14]
[343182247,1732421441383,-151.0,0.00043698,14]
[343182248,1732421441392,-151.0,0.00043698,14]
[343182249,1732421441403,-151.0,0.00043698,14]
[343182250,1732421441413,-151.0,0.00043698,14]
[343182251,1732421441422,-151.0,0.00043698,14]
[343182252,1732421441432,-151.0,0.00043698,14]
[343182253,1732421441442,-151.0,0.00043698,14]
[343182254,1732421441452,-151.0,0.00043698,14]
[343182255,1732421441462,-151.0,0.00043698,14]
[343182256,1732421441472,-151.0,0.00043698,14]
[343182257,1732421441481,-151.0,0.00043698,14]
[343182258,1732421441490,-151.0,0.00043698,14]
[343182259,1732421441638,-151.0,0.00043698,14]
[343182260,1732421441648,-151.0,0.00043698,14]
[343182261,1732421441658,-162.022023,0.00043698,14]
[343182262,1732421441667,-151.0,0.00043698,14]
[343182263,1732421441676,-157.139773,0.00043698,14]
[343182264,1732421441686,-151.0,0.00043698,14]
[343182265,1732421441695,-153.4195,0.00043698,14]
[343182266,1732421441705,-151.0,0.00043698,14]
[343182267,1732421441714,-151.0,0.00043698,14]
[343182268,1732421441723,-151.0,0.00043698,14]
[343182269,1732421441733,-151.0,0.00043698,14]
[343182270,1732421441742,-151.0,0.00043698,14]
[343182271,1732421441752,-151.0,0.00043698,14]
[343182272,1732421441762,-151.0,0.00043698,14]
[343182273,1732421441771,-151.0,0.00043698,14]
[343182274,1732421441780,-151.0,0.00043698,14]
[343182275,1732421441790,-227.557753,0.00043698,14]
[343182276,1732421441799,-151.0,0.00043698,14]
[343182277,1732421441809,-151.0,0.00043698,14]
[343182278,1732421441818,-151.0,0.00043698,14]
[343182279,1732421441827,-168.631345,0.00043698,14]
[343182280,1732421441837,-365.453261,0.00043698,14]
[343182281,1732421441846,-185.070457,0.00043698,14]
[343182282,1732421441856,-185.070457,0.00043698,14]
[343182283,1732421441865,-151.0,0.00043698,14]
[343182284,1732421441875,-151.0,0.00043698,14]
[343182285,1732421441884,-365.453261,0.00043698,14]
[343182286,1732421441898,-365.453261,0.00043698,14]
[343182287,1732421441908,-185.070457,0.00043698,14]
[343182288,1732421441918,-185.070457,0.00043698,14]
[343182289,1732421441928,-151.0,0.00043698,14]
[343182290,1732421441939,-151.0,0.00043698,14]
[343182291,1732421441948,-500.0,0.00043698,2]
[343182292,1732421441958,-482.1975,0.00043698,19]
[343182293,1732421441969,-185.170578,0.00043698,14]
[343182294,1732421441979,-299.387348,0.00043698,14]
[343182295,1732421441988,-500.0,0.00043698,2]
[343182296,1732421441998,-500.0,0.00043698,2]
[343182297,1732421442007,-500.0,0.00043698,2]
[343182298,1732421442017,-1046.95,0.00043698,2]
[343182299,1732421442026,-500.0,0.00043698,2]
[343182300,1732421442036,-500.0,0.00043698,2]
[343182301,1732421442046,-500.0,0.00043698,2]
[343182302,1732421442056,-481.89588342,0.00043698,2]
[343182303,1732421442066,-500.0,0.00043698,2]
[343182304,1732421442076,-4701.61,0.00043698,2]
[343182305,1732421442086,-500.0,0.00043698,2]
[343182306,1732421442095,-318.46657524,0.00043698,2]
[343182307,1732421442104,-500.0,0.00043698,2]
[343182308,1732421442113,-500.0,0.00043698,2]
[343182309,1732421442122,-500.0,0.00043698,2]
[343182310,1732421442131,-1783.96,0.00043698,2]
[343182311,1732421442141,-7163.9,0.00043698,2]
[343182312,1732421442150,-500.0,0.00043698,2]
[343182313,1732421442160,-500.0,0.00043698,2]
[343182314,1732421442169,-500.0,0.00043698,2]
[343182315,1732421442179,-500.0,0.00043698,2]
[343182316,1732421442189,-520.5333027,0.00043698,2]
[343182317,1732421442199,-500.0,0.00043698,2]
[343182318,1732421442208,-191.84086785,0.00043699,2]
[343182319,1732421442217,-152.6151,0.00043699,14]
[343182320,1732421442228,-151.0,0.00043699,14]
[343182321,1732421442238,-151.0,0.00043699,14]
[343182322,1732421442249,-197.963715,0.00043699,14]
[343182323,1732421442258,-197.963715,0.00043699,14]
[343182324,1732421442268,-151.0,0.00043699,3]
[343182325,1732421442277,-151.0,0.00043699,14]
[343182326,1732421442287,-151.0,0.00043699,14]
[343182327,1732421442296,-151.0,0.00043699,14]
[343182328,1732421442306,-151.0,0.00043699,14]
[343182329,1732421442315,-181.854617,0.00043699,14]
[343182330,1732421442324,-151.0,0.00043699,14]
[343182331,1732421442333,-151.0,0.00043699,14]
[343182332,1732421442343,-151.0,0.00043699,14]
[343182333,1732421442352,-151.0,0.00043699,14]
[343182334,1732421442361,-151.0,0.00043699,14]
[343182335,1732421442370,-151.0,0.00043699,14]
[343182336,1732421442379,-151.0,0.00043699,14]
[343182337,1732421442388,-151.0,0.00043699,14]
[343182338,1732421442398,-365.453261,0.00043699,14]
[343182339,1732421442410,-185.070457,0.00043699,14]
[343182340,1732421442419,-151.0,0.00043699,14]
[343182341,1732421442429,-365.453261,0.00043699,14]
[343182342,1732421442439,-185.070457,0.00043699,14]
[343182343,1732421442450,-171.964808,0.00043699,14]
[343182344,1732421442459,-27108.419066,0.000437,2]
[343182345,1732421442469,-151.0,0.000437,14]
[343182346,1732421442480,-151.0,0.000437,14]
[343182347,1732421442489,-151.0,0.000437,14]
[343182348,1732421442498,-151.0,0.000437,14]
[343182349,1732421442508,-151.0,0.000437,14]
[343182350,1732421442517,-197.963715,0.000437,14]
[343182351,1732421442527,-197.963715,0.000437,14]
[343182352,1732421442536,-197.963715,0.000437,14]
[343182353,1732421442546,-197.963715,0.000437,14]
[343182354,1732421442556,-241.116346,0.000437,3]
[343182355,1732421442566,-151.0,0.000437,14]
[343182356,1732421442575,-151.0,0.000437,14]
[343182357,1732421442585,-151.0,0.000437,14]
[343182358,1732421442594,-151.0,0.000437,14]
[343182359,1732421442603,-151.0,0.000437,14]
[343182360,1732421442612,-151.0,0.000437,14]
[343182361,1732421442622,-151.0,0.000437,14]
[343182362,1732421442632,-152.768312,0.000437,14]
[343182363,1732421442641,-151.0,0.000437,14]
[343182364,1732421442652,-151.0,0.000437,14]
[343182365,1732421442661,-151.0,0.000437,14]
[343182366,1732421442671,-151.0,0.000437,14]
[343182367,1732421442681,-151.0,0.000437,14]
[343182368,1732421442692,-151.0,0.000437,14]
[343182369,1732421442702,-365.453261,0.000437,14]
[343182370,1732421442712,-185.070457,0.000437,14]
[343182371,1732421442722,-151.0,0.000437,14]
[343182372,1732421442732,-365.453261,0.000437,14]
[343182374,1732421442742,-185.070457,0.000437,14]
[343182376,1732421442752,-5200.0,0.000437,15]
[343182377,1732421442761,-613.81,0.00043706,2]
[343182378,1732421442771,-500.0,0.00043706,2]
[343182379,1732421442781,-12842.8597534,0.00043706,2]
[343182380,1732421442791,-500.0,0.00043706,2]
[343182381,1732421442800,-500.0,0.00043706,2]
[343182382,1732421442810,-500.0,0.00043706,2]
[343182383,1732421442819,-41386.150467,0.00043706,2]
[343182384,1732421442829,-1248.74,0.00043706,2]
[343182385,1732421442838,-725.44,0.00043706,2]
[343182386,1732421442848,-2901.0840437,0.00043706,2]
[343182387,1732421442858,-226.54091869,0.00043706,2]
[343182388,1732421442868,-1601.16,0.00043706,2]
[343182389,1732421442878,-500.0,0.00043706,2]
[343182391,1732421442888,-2935.5574875,0.00043706,2]
[343182392,1732421442903,-291.68813405,0.00043706,2]
[343182393,1732421442913,-348.33872533,0.00043706,2]
[343182394,1732421442923,-501.74,0.00043706,2]
[343182395,1732421442934,-628.78,0.00043706,2]
[343182396,1732421442943,-500.0,0.00043706,2]
[343182397,1732421442953,-500.0,0.00043706,2]
[343182399,1732421442963,-741.0,0.00043706,2]
[343182401,1732421442974,-11961.6372276,0.00043706,2]
[343182403,1732421442985,-500.0,0.00043706,2]
[343182405,1732421442994,-500.0,0.00043706,2]
[343182407,1732421443005,-151.0,0.00043707,14]
[343182409,1732421443015,-365.453261,0.00043707,14]
[343182411,1732421443025,-365.453261,0.00043707,14]
[343182413,1732421443035,-185.070457,0.00043707,14]
[343182415,1732421443045,-185.070457,0.00043707,14]
[343182417,1732421443055,-243.032844,0.00043707,14]
[343182419,1732421443065,-365.453261,0.00043707,14]
[343182421,1732421443074,-365.453254,0.00043707,14]
[343182423,1732421443085,-185.070457,0.00043707,14]
[343182425,1732421443095,-185.07045,0.00043707,14]
[343182426,1732421443105,-500.0,0.00043736,2]
[343182427,1732421443114,-500.0,0.00043736,2]
[343182428,1732421443124,-500.0,0.00043736,2]
[343182429,1732421443134,-500.0,0.00043736,2]
[343182430,1732421443144,-500.0,0.00043736,2]
[343182431,1732421443154,-500.0,0.00043736,2]
[343182432,1732421443163,-500.0,0.00043736,2]
[343182433,1732421443174,-500.0,0.00043736,2]
[343182434,1732421443184,-484.63826324,0.00043736,2]
[343182435,1732421443193,-500.0,0.00043736,2]
[343182436,1732421443203,-500.0,0.00043736,2]
[343182437,1732421443213,-1427.83,0.00043736,2]
[343182440,1732421443223,-500.0,0.00043736,2]
[343182441,1732421443234,-500.0,0.00043736,2]
[343182442,1732421443244,-168.0,0.00043736,2]
[343182443,1732421443254,-500.0,0.00043736,2]
[343182444,1732421443263,-797.24,0.00043736,2]
[343182445,1732421443275,-500.0,0.00043736,2]
[343182446,1732421443284,-500.0,0.00043736,2]
[343182447,1732421443294,-806.19,0.00043736,2]
[343182448,1732421443302,-500.0,0.00043736,2]
[343182449,1732421443312,-1054.97,0.00043736,2]
[343182450,1732421443322,-869.22,0.00043736,2]
[343182451,1732421443332,-500.0,0.00043736,2]
[343182452,1732421443342,-500.0,0.00043736,2]
[343182453,1732421443352,-500.0,0.00043736,2]
[343182454,1732421443362,-945.01,0.00043736,2]
[343182455,1732421443371,-783.45,0.00043736,2]
[343182456,1732421443381,-500.0,0.00043736,2]
[343182457,1732421443391,-500.0,0.00043736,2]
[343182458,1732421443401,-500.0,0.00043736,2]
[343182459,1732421443411,-500.0,0.00043736,2]
[343182460,1732421443421,-500.0,0.00043736,2]
[343182461,1732421443432,-476.46353706,0.00043736,2]
[343182462,1732421443442,-500.0,0.00043736,2]
[343182463,1732421443452,-500.0,0.00043736,2]
[343182464,1732421443462,-517.33271837,0.00043736,2]
[343182465,1732421443471,-341.72002461,0.00043736,2]
[343182466,1732421443481,-500.0,0.00043736,2]
[343182467,1732421443490,-611.03,0.00043736,2]
[343182468,1732421443500,-500.0,0.00043736,2]
[343182469,1732421443510,-500.0,0.00043736,2]
[343182470,1732421443520,-1000.0,0.00043736,2]
[343182471,1732421443529,-500.0,0.00043736,2]
[343182472,1732421443539,-307.99234535,0.00043736,2]
[343182474,1732421443548,-558.30598077,0.00043736,2]
[343182476,1732421443558,-500.0,0.00043736,2]
[343182478,1732421443567,-500.0,0.00043736,2]
[343182480,1732421443578,-500.0,0.00043736,2]
[343182481,1732421443587,-500.0,0.00043736,2]
[343182482,1732421443597,-1046.95,0.00043736,2]
[343182483,1732421443607,-262.70161801,0.00043736,2]
[343182484,1732421443616,-500.0,0.00043736,2]
[343182485,1732421443626,-500.0,0.00043736,2]
[343182487,1732421443635,-505.00668453,0.00043736,2]
[343182489,1732421443645,-500.0,0.00043736,2]
[343182491,1732421443654,-238.09403208,0.00043736,2]
[343182492,1732421443663,-500.0,0.00043736,2]
[343182493,1732421443673,-500.0,0.00043736,2]
[343182494,1732421443683,-500.0,0.00043736,2]
[343182495,1732421443694,-500.0,0.00043736,2]
[343182496,1732421443704,-548.06220811,0.00043736,2]
[343182497,1732421443714,-507.24012365,0.00043736,2]
[343182498,1732421443724,-500.0,0.00043736,2]
[343182499,1732421443733,-500.0,0.00043736,2]
[343182500,1732421443743,-500.0,0.00043736,2]
[343182501,1732421443753,-500.0,0.00043736,2]
[343182502,1732421443762,-506.72205187,0.00043736,2]
[343182503,1732421443772,-500.0,0.00043736,2]
[343182504,1732421443782,-500.0,0.00043736,2]
[343182505,1732421443792,-500.0,0.00043736,2]
[343182506,1732421443801,-500.0,0.00043736,2]
[343182507,1732421443810,-500.0,0.00043736,2]
[343182508,1732421443821,-373.53858582,0.00043736,2]
[343182509,1732421443831,-500.0,0.00043736,2]
[343182510,1732421443840,-500.0,0.00043736,2]
[343182511,1732421443851,-500.0,0.00043736,2]
[343182512,1732421443861,-500.0,0.00043736,2]
[343182513,1732421443871,-500.0,0.00043736,2]
[343182514,1732421443881,-152.31499,0.00043737,14]
[343182515,1732421443891,-232.847828,0.00043737,14]
[343182516,1732421443904,-151.0,0.00043737,14]
[343182517,1732421443917,-151.483534,0.00043737,14]
[343182518,1732421443927,-151.0,0.00043737,14]
[343182519,1732421443938,-151.0,0.00043737,14]
[343182520,1732421443947,-151.0,0.00043737,14]
[343182521,1732421443957,-197.963715,0.00043737,14]
[343182522,1732421443966,-197.963715,0.00043737,14]
[343182523,1732421443977,-197.963715,0.00043737,14]
[343182524,1732421443986,-197.963715,0.00043737,14]
[343182525,1732421443996,-151.0,0.00043737,14]
[343182526,1732421444005,-151.0,0.00043737,14]
[343182527,1732421444014,-151.0,0.00043737,14]
[343182528,1732421444024,-161.86943,0.00043737,14]
[343182529,1732421444034,-500.0,0.00043765,2]
[343182530,1732421444044,-500.0,0.00043765,2]
[343182531,1732421444054,-253.58793908,0.00043765,2]
[343182532,1732421444063,-4701.61,0.00043765,2]
[343182533,1732421444073,-500.0,0.00043765,2]
[343182534,1732421444083,-500.0,0.00043765,2]
[343182535,1732421444092,-500.0,0.00043765,2]
[343182536,1732421444102,-394.08771356,0.00043765,2]
[343182537,1732421444111,-1783.96,0.00043765,2]
[343182538,1732421444120,-7163.9,0.00043765,2]
[343182539,1732421444130,-500.0,0.00043765,2]
[343182540,1732421444140,-500.0,0.00043765,2]
[343182541,1732421444150,-532.92978724,0.00043765,2]
[343182542,1732421444161,-423.17194692,0.00043765,2]
[343182543,1732421444171,-614.15026692,0.00043765,2]
[343182544,1732421444181,-500.0,0.00043766,2]
[343182545,1732421444190,-500.0,0.00043766,2]
[343182546,1732421444200,-500.0,0.00043766,2]
[343182547,1732421444211,-500.0,0.00043766,2]
[343182548,1732421444222,-500.0,0.00043766,2]
[343182549,1732421444232,-517.20860602,0.00043766,2]
[343182550,1732421444242,-500.0,0.00043766,2]
[343182551,1732421444253,-503.1453671,0.00043766,2]
[343182552,1732421444263,-500.0,0.00043766,2]
[343182553,1732421444273,-500.0,0.00043766,2]
[343182554,1732421444284,-500.0,0.00043766,2]
[343182555,1732421444294,-500.0,0.00043766,2]
[343182556,1732421444303,-500.0,0.00043766,2]
[343182557,1732421444313,-293.01439694,0.00043766,2]
[343182558,1732421444323,-500.0,0.00043766,2]
[343182559,1732421444333,-379.03149103,0.00043766,2]
[343182560,1732421444343,-562.77857174,0.00043766,2]
[343182561,1732421444353,-192.32820858,0.00043766,2]
[343182562,1732421444501,-543.35748747,0.00043766,2]
[343182563,1732421444511,-536.58731568,0.00043766,2]
[343182564,1732421444521,-500.0,0.00043766,2]
[343182565,1732421444530,-500.0,0.00043766,2]
[343182566,1732421444539,-500.0,0.00043766,2]
[343182567,1732421444550,-500.0,0.00043766,2]
[343182568,1732421444559,-500.0,0.00043766,2]
[343182569,1732421444569,-500.0,0.00043766,2]
[343182570,1732421444578,-386.36945681,0.00043766,2]
[343182571,1732421444589,-539.25,0.00043766,2]
[343182572,1732421444599,-500.0,0.00043766,2]
[343182573,1732421444609,-500.0,0.00043766,2]
[343182574,1732421444619,-500.0,0.00043766,2]
[343182575,1732421444628,-723.02,0.00043766,2]
[343182576,1732421444638,-300.78941309,0.00043766,2]
[343182577,1732421444647,-500.0,0.00043766,2]
[343182578,1732421444659,-237.34983783,0.00043766,2]
[343182579,1732421444668,-557.94931774,0.00043766,2]
[343182580,1732421444679,-500.0,0.00043766,2]
[343182581,1732421444688,-500.0,0.00043766,2]
[343182582,1732421444699,-500.0,0.00043766,2]
[343182583,1732421444709,-500.0,0.00043766,2]
[343182584,1732421444719,-524.88841167,0.00043766,2]
[343182585,1732421444729,-747.87,0.00043766,2]
[343182586,1732421444739,-500.0,0.00043766,2]
[343182587,1732421444749,-500.0,0.00043766,2]
[343182588,1732421444759,-500.0,0.00043766,2]
[343182589,1732421444768,-718.12,0.00043766,2]
[343182590,1732421444778,-500.0,0.00043766,2]
[343182591,1732421444789,-500.0,0.00043766,2]
[343182592,1732421444799,-500.0,0.00043766,2]
[343182593,1732421444809,-500.0,0.00043766,2]
[343182594,1732421444819,-500.0,0.00043766,2]
[343182595,1732421444829,-500.0,0.00043766,2]
[343182596,1732421444839,-500.0,0.00043766,2]
[343182597,1732421444849,-500.0,0.00043766,2]
[343182598,1732421444859,-500.0,0.00043766,2]
[343182599,1732421444868,-500.0,0.00043766,2]
[343182600,1732421444878,-500.0,0.00043766,2]
[343182601,1732421444889,-500.0,0.00043766,2]
[343182602,1732421444902,-500.0,0.00043766,2]
[343182603,1732421444913,-500.0,0.00043766,2]
[343182604,1732421444923,-500.0,0.00043766,2]
[343182605,1732421444934,-500.0,0.00043766,2]
[343182606,1732421444944,-500.0,0.00043766,2]
[343182607,1732421444953,-500.0,0.00043766,2]
[343182608,1732421444963,-500.0,0.00043766,2]
[343182609,1732421444974,-509.08221728,0.00043766,2]
[343182610,1732421444983,-259.14193862,0.00043766,2]
[343182611,1732421444994,-500.0,0.00043766,2]
[343182612,1732421445003,-500.0,0.00043766,2]
[343182613,1732421445013,-511.8625304,0.00043766,2]
[343182614,1732421445023,-500.0,0.00043766,2]